bitfinex/quotes_BTCUSD_20241216
["timestamp","ask_amount","ask_price","bid_price","bid_amount"]
[1734363344402,0.22587169,105860.0,105850.0,0.00025364]
[1734363344612,0.03360008,105810.0,105780.0,0.00983807]
[1734363344824,0.03360008,105790.0,105780.0,0.00983807]
[1734363345027,0.03360008,105790.0,105760.0,0.06113542]
[1734363345028,0.03360008,105780.0,105760.0,0.06113542]
[1734363345236,0.06868321,105780.0,105760.0,0.07097709]
[1734363345853,0.06868321,105780.0,105760.0,0.02457709]
[1734363346263,0.06296306,105780.0,105760.0,0.02457709]
[1734363346474,0.06296306,105780.0,105760.0,0.02513479]
[1734363346681,0.06296306,105780.0,105760.0,0.01529312]
[1734363347785,0.02787993,105770.0,105760.0,0.01529312]
[1734363348017,0.0942907,105770.0,105760.0,0.01529312]
[1734363348232,0.4248907,105770.0,105760.0,0.01529312]
[1734363348451,0.2773907,105770.0,105760.0,0.01529312]
[1734363348663,0.2273907,105770.0,105760.0,0.01529312]
[1734363348935,0.2273907,105770.0,105760.0,0.01537952]
[1734363349157,0.1773907,105770.0,105760.0,0.0006441]
[1734363349397,0.17857293,105770.0,105760.0,0.0006441]
[1734363350027,0.1,105760.0,105740.0,8.63e-05]
[1734363350242,0.14547297,105750.0,105740.0,0.00025368]
[1734363351086,0.19547297,105750.0,105740.0,0.00025368]
[1734363351519,0.14547297,105750.0,105740.0,0.00025368]
[1734363351727,0.19547303,105750.0,105740.0,0.00025368]
[1734363352585,0.14547303,105750.0,105740.0,0.00025368]
[1734363353071,0.0304,105740.0,105730.0,8.65e-05]
[1734363353280,0.05,105690.0,105620.0,0.06635498]
[1734363353501,0.05,105690.0,105610.0,0.42598907]
[1734363353502,0.05,105690.0,105660.0,0.00984971]
[1734363353710,0.05,105690.0,105630.0,0.1320627]
[1734363353922,0.05,105690.0,105660.0,0.00985003]
[1734363354417,0.05,105690.0,105630.0,0.1320627]
[1734363354418,0.07787993,105700.0,105670.0,0.0942907]
[1734363354825,0.07787993,105700.0,105670.0,0.0948463]
[1734363355024,0.07787993,105700.0,105670.0,0.2448463]
[1734363355761,0.02787993,105700.0,105670.0,0.2448463]
[1734363357463,0.05,105710.0,105670.0,0.2448463]
[1734363357675,0.02787993,105720.0,105680.0,0.3422823]
[1734363357885,0.07787993,105720.0,105690.0,0.2442907]
[1734363358506,0.05,105720.0,105690.0,0.2442907]
[1734363358711,0.02787993,105720.0,105690.0,0.2442907]
[1734363358918,0.07787993,105730.0,105700.0,0.023]
[1734363359123,0.07787993,105730.0,105700.0,0.2672907]
[1734363359338,0.02787993,105720.0,105700.0,0.2672907]
[1734363359570,0.07787993,105730.0,105700.0,0.2672907]
[1734363359787,0.02787993,105720.0,105700.0,0.2672907]
[1734363360015,0.02787993,105720.0,105700.0,0.15]
[1734363360220,0.17217063,105720.0,105690.0,0.06164156]
[1734363361507,0.17217063,105710.0,105690.0,0.01484156]
[1734363361742,0.17335305,105710.0,105690.0,0.01484156]
[1734363362041,0.05,105700.0,105690.0,0.01484156]
[1734363362249,0.2806,105720.0,105690.0,0.10913226]
[1734363362250,0.35847993,105720.0,105690.0,0.10913226]
[1734363362463,0.07787993,105730.0,105700.0,0.2442907]
[1734363362684,0.02787993,105730.0,105700.0,0.3678907]
[1734363362890,0.05,105720.0,105700.0,0.2736]
[1734363363102,0.05,105710.0,105700.0,0.15]
[1734363363512,0.07787993,105710.0,105690.0,0.01484156]
[1734363364345,0.02787993,105710.0,105690.0,0.01484156]
[1734363364975,0.02787993,105710.0,105700.0,0.15]
[1734363365182,0.02687993,105710.0,105700.0,0.15]
[1734363365390,0.02687993,105710.0,105700.0,0.05]
[1734363365602,0.07687993,105710.0,105700.0,0.05]
[1734363365826,0.02687993,105710.0,105700.0,0.05]
[1734363366033,0.07687993,105710.0,105690.0,0.01484156]
[1734363366864,0.02687993,105710.0,105690.0,0.01484156]
[1734363367085,0.02687993,105720.0,105690.0,0.10913226]
[1734363367294,0.05,105730.0,105690.0,0.10913226]
[1734363367295,0.07687993,105730.0,105690.0,0.10913226]
[1734363367500,0.17117063,105730.0,105700.0,0.15]
[1734363367918,0.1442907,105730.0,105700.0,0.15]
[1734363368132,0.02687993,105710.0,105700.0,0.15]
[1734363369257,0.02687993,105720.0,105700.0,0.15]
[1734363369464,0.3599,105750.0,105700.0,0.3230907]
[1734363369727,0.02687993,105730.0,105710.0,0.0942907]
[1734363369944,0.02687993,105730.0,105700.0,0.0788]
[1734363369945,0.07687993,105730.0,105700.0,0.0788]
[1734363370151,0.07687993,105720.0,105690.0,0.01484156]
[1734363371059,0.07687993,105720.0,105690.0,0.01539716]
[1734363371278,0.02687993,105710.0,105690.0,0.01539716]
[1734363371695,0.07687993,105720.0,105690.0,0.01539716]
[1734363372104,0.02687993,105710.0,105690.0,0.01539716]
[1734363372990,0.07687993,105710.0,105690.0,0.01539716]
[1734363373208,0.17235315,105710.0,105690.0,0.01539716]
[1734363373621,0.05,105700.0,105690.0,0.01539716]
[1734363374765,0.12235315,105710.0,105690.0,0.01539716]
[1734363374766,0.07687993,105710.0,105690.0,0.01539716]
[1734363375384,0.17117063,105710.0,105690.0,0.01539716]
[1734363376849,0.17117063,105710.0,105690.0,0.01449716]
[1734363378136,0.17117063,105710.0,105680.0,0.20583454]
[1734363378366,0.1717274,105710.0,105690.0,0.01475537]
[1734363378790,0.1717274,105710.0,105680.0,0.21832657]
[1734363380263,0.1717274,105710.0,105670.0,0.07100347]
[1734363380264,0.07687993,105690.0,105670.0,0.01475532]
[1734363380480,0.14547349,105680.0,105670.0,0.01475532]
[1734363380702,0.09547349,105680.0,105670.0,0.01475532]
[1734363380920,0.05,105660.0,105630.0,0.04697512]
[1734363381377,0.05,105660.0,105630.0,0.00047512]
[1734363381378,0.05,105650.0,105630.0,0.00047512]
[1734363381587,0.05,105640.0,105630.0,0.00047512]
[1734363381800,0.05,105640.0,105620.0,0.0805]
[1734363382022,0.02806318,105660.0,105620.0,0.18983589]
[1734363382244,0.05,105650.0,105630.0,0.01562191]
[1734363382463,0.05,105650.0,105620.0,0.18955594]
[1734363382673,0.05,105650.0,105620.0,0.18972301]
[1734363382885,0.17117063,105650.0,105620.0,0.10798262]
[1734363383097,0.07687993,105650.0,105620.0,0.20227332]
[1734363383730,0.07687993,105660.0,105620.0,0.20227332]
[1734363383944,0.2806,105730.0,105670.0,0.05]
[1734363384160,0.25806833,105760.0,105700.0,0.0804]
[1734363384161,0.01212016,105750.0,105700.0,0.0804]
[1734363384372,0.0942907,105740.0,105720.0,0.15]
[1734363384582,0.0001728,105780.0,105740.0,0.15]
[1734363384583,0.2807728,105780.0,105740.0,0.15]
[1734363384821,0.2807728,105780.0,105740.0,0.62286]
[1734363384822,0.13064715,105770.0,105740.0,0.62286]
[1734363385071,0.03635645,105760.0,105750.0,0.02963746]
[1734363385292,0.03635645,105760.0,105750.0,1.02580816]
[1734363385501,0.00072991,105780.0,105760.0,0.05028836]
[1734363385707,0.00072991,105780.0,105770.0,1.33555242]
[1734363385917,0.000173,105810.0,105790.0,0.023]
[1734363386144,0.00034013,105810.0,105800.0,1.23238005]
[1734363386353,0.2807728,105860.0,105810.0,0.150173]
[1734363386570,0.0942907,105850.0,105820.0,0.01268583]
[1734363386780,0.1942907,105850.0,105820.0,0.4725]
[1734363386987,0.46124715,105840.0,105830.0,0.15]
[1734363387660,0.51124715,105840.0,105830.0,0.15]
[1734363387846,0.1,105830.0,105820.0,0.6225]
[1734363388059,0.0942907,105830.0,105820.0,0.4725]
[1734363388266,0.1,105810.0,105750.0,0.09259366]
[1734363388560,0.19547249,105800.0,105750.0,0.0774]
[1734363388774,0.19547249,105800.0,105740.0,0.0471]
[1734363388775,0.0942907,105780.0,105740.0,0.0471]
[1734363388983,0.00118199,105770.0,105740.0,0.0471]
[1734363389192,0.0942907,105760.0,105740.0,0.0471]
[1734363389850,0.0942907,105760.0,105740.0,0.04765711]
[1734363390060,0.0942907,105760.0,105740.0,0.00055711]
[1734363390685,0.05,105800.0,105740.0,0.00055711]
[1734363390896,0.09547241,105790.0,105750.0,0.0942907]
[1734363391104,0.09547241,105790.0,105750.0,0.1420907]
[1734363391315,0.09547241,105790.0,105760.0,0.15]
[1734363391928,0.09547236,105790.0,105760.0,0.15]
[1734363392559,0.2806,105810.0,105760.0,0.2442907]
[1734363392775,0.0942907,105810.0,105770.0,0.0942907]
[1734363392983,0.09547218,105810.0,105770.0,0.1711907]
[1734363393193,0.09547218,105810.0,105780.0,0.15]
[1734363394024,0.2806,105830.0,105780.0,0.2442907]
[1734363394239,0.0942907,105820.0,105780.0,0.2442907]
[1734363394444,0.0942907,105820.0,105780.0,0.27163646]
[1734363395276,0.00118131,105850.0,105810.0,0.023]
[1734363395492,0.00118131,105850.0,105820.0,0.15]
[1734363395493,0.0942907,105850.0,105820.0,0.15]
[1734363395693,0.0001728,105860.0,105820.0,0.15]
[1734363395904,0.0944635,105860.0,105820.0,0.82656933]
[1734363396118,0.0001728,105860.0,105830.0,0.0942907]
[1734363396330,0.0001728,105860.0,105830.0,0.5667507]
[1734363396546,0.0001728,105860.0,105840.0,0.15]
[1734363396762,0.00034014,105860.0,105840.0,0.15]
[1734363396972,0.00034014,105860.0,105840.0,0.62241]
[1734363397418,0.09463084,105860.0,105840.0,0.62241]
[1734363397629,0.0954716,105850.0,105840.0,0.62241]
[1734363398246,0.00034014,105860.0,105840.0,0.62241]
[1734363398454,0.09463084,105860.0,105840.0,0.62241]
[1734363398674,0.0942907,105850.0,105840.0,0.62241]
[1734363399122,0.0943307,105850.0,105840.0,0.47241]
[1734363399548,0.3749307,105850.0,105840.0,0.47241]
[1734363400477,0.4749307,105850.0,105840.0,0.47241]
[1734363401961,0.4249307,105850.0,105840.0,0.47241]
[1734363402395,0.3749307,105850.0,105840.0,0.62241]
[1734363405666,0.4249307,105850.0,105840.0,0.62241]
[1734363405879,0.3749307,105850.0,105840.0,0.47241]
[1734363406085,0.4249307,105850.0,105840.0,0.47241]
[1734363406301,0.2806,105840.0,105790.0,0.1284]
[1734363406517,0.3748907,105840.0,105800.0,0.0942907]
[1734363406785,0.3748907,105840.0,105800.0,0.10925004]
[1734363407010,0.3748907,105840.0,105800.0,0.11365154]
[1734363407217,4e-05,105850.0,105810.0,0.00668852]
[1734363407437,0.0943307,105850.0,105820.0,0.00747967]
[1734363407657,0.0943307,105850.0,105820.0,0.01495934]
[1734363408748,0.0945033,105850.0,105820.0,0.01495934]
[1734363409201,0.09547166,105840.0,105800.0,0.16495934]
[1734363410054,0.0002126,105850.0,105820.0,0.15]
[1734363410269,0.0942907,105840.0,105820.0,0.15]
[1734363411127,0.0942907,105840.0,105810.0,0.01495934]
[1734363412028,0.0942907,105840.0,105800.0,0.15]
[1734363412238,0.0942907,105840.0,105800.0,0.2942907]
[1734363412450,0.0942907,105840.0,105800.0,0.3060661]
[1734363412915,0.0942907,105840.0,105800.0,0.2442907]
[1734363413356,0.0942907,105840.0,105800.0,0.2942907]
[1734363414467,0.0942907,105840.0,105810.0,0.0117754]
[1734363414677,0.00139362,105850.0,105820.0,0.15]
[1734363414898,0.0945033,105850.0,105820.0,0.15]
[1734363415105,0.09568432,105850.0,105820.0,0.15]
[1734363415545,0.0002126,105850.0,105820.0,0.2442907]
[1734363415797,0.0002126,105850.0,105840.0,0.15]
[1734363416005,0.0002126,105850.0,105840.0,0.62241]
[1734363416417,0.0002126,105850.0,105840.0,0.7397007]
[1734363416890,0.00034014,105860.0,105840.0,2.40498944]
[1734363417117,0.00034014,105860.0,105850.0,1.26539344]
[1734363417364,0.00034014,105860.0,105850.0,1.56017644]
[1734363417570,0.00034014,105860.0,105850.0,1.19547144]
[1734363418476,0.01323845,105880.0,105870.0,0.1]
[1734363418700,0.00246591,105880.0,105870.0,1.5189407]
[1734363418914,0.00246591,105880.0,105870.0,2.06379044]
[1734363419136,0.00246591,105880.0,105870.0,1.85385344]
[1734363419343,0.0001734,105890.0,105880.0,0.17886591]
[1734363419563,0.0002128,105900.0,105890.0,0.173]
[1734363419833,0.0001728,105910.0,105890.0,1.5262667]
[1734363420041,0.0001728,105910.0,105890.0,0.7394807]
[1734363420247,0.0001728,105910.0,105900.0,0.13968856]
[1734363420456,0.00118006,105940.0,105910.0,0.15]
[1734363420673,0.00118006,105940.0,105920.0,0.02248297]
[1734363420911,0.00079074,105930.0,105920.0,0.02248297]
[1734363421150,0.0752728,105960.0,105940.0,0.00108772]
[1734363421151,0.0002126,105950.0,105940.0,0.00108772]
[1734363421357,0.0946706,105950.0,105940.0,0.04388303]
[1734363421568,0.0946706,105950.0,105940.0,0.04238194]
[1734363421999,0.0003799,105950.0,105940.0,0.04238194]
[1734363422215,0.0003799,105950.0,105940.0,0.66390544]
[1734363422446,0.0001728,105980.0,105940.0,0.66390544]
[1734363422447,0.0001728,105980.0,105950.0,0.1503799]
[1734363422663,0.0944635,105980.0,105950.0,0.66589308]
[1734363422884,0.0001728,105980.0,105970.0,0.15]
[1734363423099,0.04719189,105990.0,105970.0,0.62183]
[1734363423315,0.04719189,105990.0,105980.0,0.03143716]
[1734363423540,0.01240853,105990.0,105980.0,0.05136021]
[1734363423788,0.01240853,105990.0,105980.0,0.0484616]
[1734363423997,0.10287859,105990.0,105970.0,0.62183]
[1734363424440,0.00740853,105990.0,105980.0,0.01992305]
[1734363424656,0.00757568,105990.0,105980.0,0.01992305]
[1734363424883,0.00875503,105990.0,105980.0,0.01992305]
[1734363425300,0.30004,106000.0,105990.0,0.15117935]
[1734363425519,0.30004,106000.0,105990.0,0.64284755]
[1734363425735,0.30004,106000.0,105990.0,0.64644504]
[1734363426150,0.3943307,106000.0,105990.0,0.64644504]
[1734363426395,0.3943307,106000.0,105990.0,0.62174]
[1734363428761,0.30004,106000.0,105990.0,0.62174]
[1734363429198,0.3943307,106000.0,105990.0,0.47174]
[1734363430059,0.4443307,106000.0,105990.0,0.47174]
[1734363430277,0.3943307,106000.0,105990.0,0.47174]
[1734363431116,0.3943307,106000.0,105990.0,0.62174]
[1734363433451,0.3944168,106000.0,105990.0,0.62174]
[1734363434108,0.6610168,106000.0,105990.0,0.62174]
[1734363434320,0.3001261,106000.0,105990.0,0.62174]
[1734363436905,0.3001261,106000.0,105990.0,0.646313]
[1734363438162,0.3944168,106000.0,105990.0,0.62174]
[1734363439538,0.3001261,106000.0,105990.0,0.62174]
[1734363439735,0.3001261,106000.0,105990.0,0.646313]
[1734363440927,0.3001261,106000.0,105990.0,0.62174]
[1734363441547,0.3944168,106000.0,105990.0,0.62174]
[1734363442377,0.3001261,106000.0,105990.0,0.62174]
[1734363442582,0.3001261,106000.0,105990.0,0.6422965]
[1734363443839,0.3001261,106000.0,105990.0,0.62174]
[1734363444668,0.3001261,106000.0,105990.0,0.6219122]
[1734363445206,0.3001261,106000.0,105990.0,0.6424687]
[1734363445428,0.3001261,106000.0,105990.0,0.73679914]
[1734363446035,0.3001261,106000.0,105990.0,0.7212687]
[1734363446796,0.3001261,106000.0,105990.0,0.73679914]
[1734363447537,0.3001261,106000.0,105990.0,0.63895644]
[1734363447740,0.3001261,106000.0,105990.0,0.6219122]
[1734363448320,0.3001261,106000.0,105990.0,0.63043432]
[1734363448532,0.3001261,106000.0,105990.0,0.63895644]
[1734363448729,0.3001261,106000.0,105990.0,1.12806188]
[1734363449195,0.2965785,106000.0,105990.0,1.11253144]
[1734363449365,0.289307,106000.0,105990.0,0.92260166]
[1734363449580,0.289307,106000.0,105990.0,0.93036688]
[1734363449797,0.28694806,106000.0,105990.0,0.65448688]
[1734363450005,0.28694806,106000.0,105990.0,0.80564288]
[1734363450347,0.28694806,106000.0,105990.0,0.65448688]
[1734363450763,0.28694806,106000.0,105990.0,0.76132764]
[1734363450997,0.28694806,106000.0,105990.0,0.63744264]
[1734363451981,0.28694806,106000.0,105990.0,0.45236065]
[1734363453142,0.28694806,106000.0,105990.0,0.60155065]
[1734363453730,0.28694806,106000.0,105990.0,0.61848382]
[1734363453936,0.28694806,106000.0,105990.0,0.62830555]
[1734363454193,0.28095608,106000.0,105990.0,0.48893728]
[1734363454432,0.27476028,106000.0,105990.0,0.74139928]
[1734363454634,0.27476028,106000.0,105990.0,0.48893728]
[1734363455282,0.27476028,106000.0,105990.0,0.33893728]
[1734363455698,0.27476028,106000.0,105990.0,0.31929382]
[1734363456521,0.27476028,106000.0,105990.0,0.46929382]
[1734363457636,0.27476028,106000.0,105990.0,0.56358452]
[1734363458151,0.27476028,106000.0,105990.0,0.50695082]
[1734363458353,0.27476028,106000.0,105990.0,0.46929382]
[1734363459654,0.27476028,106000.0,105990.0,0.45376338]
[1734363460143,0.27476028,106000.0,105990.0,0.46614344]
[1734363461473,0.36905098,106000.0,105990.0,0.28683021]
[1734363462781,0.49935098,106000.0,105990.0,0.28683021]
[1734363463026,0.68257834,106000.0,105990.0,0.28683021]
[1734363463236,0.68257834,106000.0,105960.0,0.01471629]
[1734363463237,0.05,105990.0,105960.0,0.01471629]
[1734363463442,0.09547038,105980.0,105960.0,0.02080039]
[1734363463662,0.0942907,105980.0,105970.0,0.0118339]
[1734363463889,0.00117947,105990.0,105960.0,0.14338344]
[1734363464096,0.09547017,105990.0,105960.0,0.00919758]
[1734363464313,0.09547017,105990.0,105970.0,0.15]
[1734363465899,0.0942907,105980.0,105970.0,0.15]
[1734363466320,0.0942907,105980.0,105960.0,0.47181]
[1734363466536,0.00117964,105970.0,105960.0,0.47181]
[1734363466748,0.09547034,105970.0,105960.0,0.47181]
[1734363467393,0.13667737,105970.0,105960.0,0.47181]
[1734363467602,0.27958897,105970.0,105960.0,0.47181]
[1734363467810,0.48558648,105970.0,105960.0,0.47181]
[1734363468228,0.40347814,105970.0,105960.0,0.47181]
[1734363468453,0.40347999,105970.0,105960.0,0.47181]
[1734363468661,0.48558648,105970.0,105960.0,0.47181]
[1734363468874,0.5699347,105970.0,105960.0,0.47181]
[1734363469084,0.5699347,105970.0,105960.0,0.62181]
[1734363469297,0.27863892,105970.0,105960.0,0.62181]
[1734363469766,0.0942907,105970.0,105960.0,0.62181]
[1734363470197,0.3477,105990.0,105970.0,0.15]
[1734363470410,0.0942907,105980.0,105970.0,0.15]
[1734363470620,0.0954702,105980.0,105970.0,0.62183]
[1734363472117,0.23151674,105980.0,105970.0,0.47183]
[1734363472337,0.2748907,105980.0,105970.0,0.47183]
[1734363472554,0.1978907,105980.0,105970.0,0.47183]
[1734363472760,0.19907047,105980.0,105970.0,0.47183]
[1734363473641,0.2248907,105980.0,105970.0,0.47183]
[1734363473853,0.2748907,105980.0,105970.0,0.62183]
[1734363474957,0.1748907,105980.0,105970.0,0.47183]
[1734363475185,0.19907046,105980.0,105970.0,0.47183]
[1734363475598,0.21673183,105980.0,105970.0,0.47183]
[1734363475810,0.21555207,105980.0,105970.0,0.47183]
[1734363476514,0.24255207,105980.0,105970.0,0.47183]
[1734363476936,0.21555207,105980.0,105970.0,0.47183]
[1734363477145,0.26555207,105980.0,105970.0,0.47183]
[1734363477365,0.24255207,105980.0,105970.0,0.47183]
[1734363479301,0.24255207,105980.0,105970.0,0.62183]
[1734363479518,0.24263817,105980.0,105970.0,0.62183]
[1734363480454,0.16203817,105980.0,105970.0,0.62183]
[1734363480706,0.14555645,105980.0,105970.0,0.62183]
[1734363480971,0.09555645,105980.0,105970.0,0.62183]
[1734363481227,0.14555645,105980.0,105970.0,0.62183]
[1734363481461,0.09555645,105980.0,105970.0,0.62183]
[1734363481665,0.14555645,105980.0,105970.0,0.62183]
[1734363482322,0.09555645,105980.0,105970.0,0.62183]
[1734363482552,0.36215643,105980.0,105970.0,0.62827618]
[1734363482782,0.3609768,105980.0,105970.0,0.62183]
[1734363483198,0.0943768,105980.0,105970.0,0.62827618]
[1734363483404,0.0943768,105980.0,105970.0,0.63472236]
[1734363483609,0.09555636,105980.0,105970.0,0.62183]
[1734363485074,0.09555636,105980.0,105970.0,0.62827618]
[1734363485281,0.09555636,105980.0,105970.0,0.63763414]
[1734363485696,0.09555636,105980.0,105970.0,0.62474178]
[1734363485908,0.09555636,105980.0,105970.0,0.62827618]
[1734363486119,0.09555636,105980.0,105970.0,0.62183]
[1734363486340,0.41215636,105980.0,105970.0,0.62183]
[1734363486536,0.4109768,105980.0,105970.0,0.62474178]
[1734363487151,0.4109768,105980.0,105970.0,0.62183]
[1734363487365,0.14798448,105980.0,105970.0,0.47183]
[1734363487575,0.11855654,105980.0,105970.0,0.47183]
[1734363488424,0.11855661,105980.0,105970.0,0.47183]
[1734363491321,0.11855661,105980.0,105970.0,0.26312216]
[1734363492141,0.023,105970.0,105960.0,0.0001722]
[1734363492274,0.1172907,105970.0,105960.0,0.0001722]
[1734363492858,0.1672907,105970.0,105960.0,0.0001722]
[1734363493064,0.1172907,105970.0,105960.0,0.0001722]
[1734363493681,0.12914636,105970.0,105960.0,0.0001722]
[1734363493873,0.25314636,105970.0,105960.0,0.0001722]
[1734363494323,0.2213907,105970.0,105960.0,0.0001722]
[1734363494523,0.10989393,105970.0,105960.0,0.0001722]
[1734363494748,0.0942907,105970.0,105960.0,0.0001722]
[1734363494960,0.00126584,105980.0,105960.0,0.01728593]
[1734363495166,0.00126584,105980.0,105970.0,0.0498]
[1734363495167,8.61e-05,105980.0,105970.0,0.0498]
[1734363495389,8.61e-05,105980.0,105970.0,0.7187403]
[1734363495641,8.61e-05,105980.0,105970.0,0.3259983]
[1734363496029,8.61e-05,105980.0,105970.0,0.30732031]
[1734363496234,8.61e-05,105980.0,105970.0,0.29841373]
[1734363496437,8.61e-05,105980.0,105970.0,0.30286702]
[1734363496637,8.61e-05,105980.0,105970.0,0.30732031]
[1734363497357,0.0943768,105980.0,105970.0,0.06691373]
[1734363497582,0.3609768,105980.0,105970.0,0.01711373]
[1734363497853,0.3609768,105980.0,105960.0,0.0001722]
[1734363498053,0.09547035,105970.0,105960.0,0.0001722]
[1734363498254,0.2666861,105980.0,105960.0,0.0001722]
[1734363498492,0.3609768,105980.0,105960.0,0.00907878]
[1734363498623,0.3609768,105980.0,105960.0,0.0001722]
[1734363499451,0.3609768,105980.0,105960.0,0.1501722]
[1734363500079,0.0942907,105970.0,105960.0,0.1501722]
[1734363500288,0.09547023,105970.0,105960.0,0.1501722]
[1734363500540,0.0942907,105970.0,105960.0,0.1501722]
[1734363500749,0.09547032,105970.0,105960.0,0.1501722]
[1734363500949,0.0942907,105970.0,105960.0,0.1501722]
[1734363501156,0.09547041,105970.0,105960.0,0.1501722]
[1734363501616,8.61e-05,105980.0,105960.0,0.2444629]
[1734363501817,8.61e-05,105980.0,105960.0,0.1501722]
[1734363506054,0.53557858,106000.0,105960.0,0.1501722]
[1734363506261,0.09547017,105990.0,105960.0,0.1501722]
[1734363506473,0.09547017,105990.0,105970.0,0.01841744]
[1734363507919,0.36207017,105990.0,105970.0,0.01841744]
[1734363508146,0.3608907,105990.0,105970.0,0.01841744]
[1734363508368,0.00117957,105980.0,105970.0,0.01841744]
[1734363508793,0.26897858,106000.0,105970.0,0.01841744]
[1734363509000,0.0942907,105990.0,105970.0,0.01841744]
[1734363509862,0.26897858,106000.0,105970.0,0.01841744]
[1734363510065,0.36326928,106000.0,105970.0,0.01841744]
[1734363510274,0.26897858,106000.0,105980.0,0.07674348]
[1734363510530,0.26897858,106000.0,105990.0,0.15]
[1734363510745,0.26897858,106000.0,105990.0,0.16841744]
[1734363511170,0.25425963,106000.0,105990.0,0.16841744]
[1734363511820,0.25425963,106000.0,105990.0,0.16936078]
[1734363513317,0.25425963,106000.0,105990.0,0.70523448]
[1734363513533,0.25425963,106000.0,105990.0,0.68499714]
[1734363513742,0.25425963,106000.0,105990.0,0.53256914]
[1734363513950,0.25425963,106000.0,105990.0,0.26270814]
[1734363514158,0.25425963,106000.0,105990.0,0.57374814]
[1734363514386,0.24111434,106000.0,105990.0,0.70314814]
[1734363514595,0.24111434,106000.0,105990.0,0.70332034]
[1734363514807,0.220369,106000.0,105990.0,0.70332034]
[1734363515231,0.001,106010.0,106000.0,0.05]
[1734363515441,0.00040214,106030.0,106010.0,0.15]
[1734363515715,0.00040214,106030.0,106020.0,0.00094302]
[1734363516148,0.00040214,106030.0,106010.0,0.15]
[1734363516357,0.00040214,106030.0,106010.0,0.17715072]
[1734363516567,0.00056929,106030.0,106010.0,0.02715072]
[1734363518091,0.09485999,106030.0,106010.0,0.02715072]
[1734363518331,0.0942907,106020.0,106010.0,0.02715072]
[1734363518544,0.09546967,106020.0,105990.0,0.01483295]
[1734363519815,0.0942907,106020.0,105990.0,0.01483295]
[1734363520032,0.0942907,106020.0,105990.0,0.01577624]
[1734363520639,0.0942907,106020.0,105990.0,0.01483295]
[1734363520886,0.09546981,106020.0,105990.0,0.01483295]
[1734363522059,0.2666,106010.0,105990.0,0.0001722]
[1734363522295,0.0954701,106000.0,105990.0,0.0001722]
[1734363522512,0.3620701,106000.0,105990.0,0.0001722]
[1734363522729,0.3608907,106000.0,105990.0,0.0001722]
[1734363523785,0.4600907,106000.0,105990.0,0.0001722]
[1734363524431,0.5086907,106000.0,105990.0,0.0001722]
[1734363525532,0.4370907,106000.0,105990.0,0.0001722]
[1734363525742,0.1705768,106000.0,105990.0,0.0001722]
[1734363525968,0.4371768,106000.0,105990.0,0.0001722]
[1734363527551,8.61e-05,106000.0,105990.0,0.0001722]
[1734363527764,8.61e-05,106000.0,105990.0,0.01663203]
[1734363528882,8.61e-05,106000.0,105990.0,0.01757537]
[1734363530245,8.61e-05,106000.0,105990.0,0.16757537]
[1734363531367,8.61e-05,106000.0,105990.0,0.01663203]
[1734363531888,0.1173768,106000.0,105990.0,0.01663203]
[1734363533637,0.1173768,106000.0,105990.0,0.0001722]
[1734363533970,8.61e-05,106000.0,105990.0,0.0001722]
[1734363535338,8.61e-05,106000.0,105990.0,0.00084722]
[1734363535851,8.61e-05,106000.0,105990.0,0.0001722]
[1734363536275,8.61e-05,106000.0,105990.0,0.02565625]
[1734363537037,8.61e-05,106000.0,105990.0,0.11994695]
[1734363537301,8.61e-05,106000.0,105990.0,0.92645197]
[1734363537513,8.61e-05,106000.0,105990.0,0.97645197]
[1734363537930,8.61e-05,106000.0,105990.0,0.97577695]
[1734363538348,8.61e-05,106000.0,105990.0,1.02645197]
[1734363538762,8.61e-05,106000.0,105990.0,0.70451585]
[1734363538963,8.61e-05,106000.0,105990.0,0.6790318]
[1734363539101,8.61e-05,106000.0,105990.0,2.2911548]
[1734363539553,8.61e-05,106000.0,105990.0,2.45842991]
[1734363539756,8.61e-05,106000.0,105990.0,2.58388625]
[1734363539956,8.61e-05,106000.0,105990.0,1.74518738]
[1734363540728,8.61e-05,106000.0,105990.0,1.74591163]
[1734363541376,0.06897169,106060.0,106010.0,0.05]
[1734363541554,0.01113393,106050.0,106020.0,0.32693359]
[1734363541765,0.01113393,106050.0,106020.0,0.3259907]
[1734363541972,0.06113393,106050.0,106020.0,0.2317]
[1734363542815,0.06113393,106050.0,106020.0,0.0817]
[1734363542967,0.06113393,106050.0,106020.0,0.08264298]
[1734363543168,0.06113393,106050.0,106020.0,0.00094298]
[1734363543396,0.01113393,106050.0,106020.0,0.09523368]
[1734363543600,0.01113393,106050.0,106030.0,0.15]
[1734363544007,0.01113393,106050.0,106020.0,0.53125993]
[1734363544581,0.06057689,106040.0,106020.0,0.47154]
[1734363545216,0.06057689,106040.0,106020.0,0.48480951]
[1734363545432,0.19806949,106030.0,106020.0,0.47154]
[1734363546896,0.19806949,106030.0,106020.0,0.62154]
[1734363549383,0.46466949,106030.0,106020.0,0.62154]
[1734363549514,0.4338907,106030.0,106020.0,0.62154]
[1734363549722,0.4338907,106030.0,106020.0,0.62361626]
[1734363549941,0.4338907,106030.0,106020.0,0.62257813]
[1734363550155,0.3838907,106030.0,106020.0,0.62154]
[1734363551855,0.4338907,106030.0,106020.0,0.62154]
[1734363552388,0.1672907,106030.0,106020.0,0.62154]
[1734363552571,0.16846965,106030.0,106020.0,0.62154]
[1734363554255,0.11846965,106030.0,106020.0,0.62154]
[1734363555305,0.11846965,106030.0,106020.0,0.47154]
[1734363555894,0.24406965,106030.0,106020.0,0.47154]
[1734363556143,0.2928907,106030.0,106020.0,0.48121071]
[1734363556380,0.2928907,106030.0,106020.0,0.49243026]
[1734363557184,0.2928907,106030.0,106020.0,0.64243026]
[1734363557185,0.1698907,106030.0,106020.0,0.64243026]
[1734363557607,0.17106973,106030.0,106020.0,0.64243026]
[1734363557825,0.14546972,106030.0,106020.0,0.64243026]
[1734363558031,0.14546972,106030.0,106020.0,0.62154]
[1734363558872,0.09546972,106030.0,106020.0,0.64391365]
[1734363559079,0.11846972,106030.0,106020.0,0.64391365]
[1734363559327,0.11846972,106030.0,106020.0,0.62147455]
[1734363559761,0.1172907,106030.0,106020.0,0.64391365]
[1734363559969,0.1172907,106030.0,106020.0,0.62147455]
[1734363560192,0.1172907,106030.0,106020.0,0.64391365]
[1734363561546,0.08357689,106030.0,106020.0,0.64391365]
[1734363561769,0.05,106040.0,106030.0,0.15]
[1734363561988,0.05,106040.0,106030.0,0.170457]
[1734363561989,0.09546955,106040.0,106030.0,0.170457]
[1734363562397,0.09546955,106040.0,106030.0,0.1602285]
[1734363562618,0.09546955,106040.0,106030.0,0.15]
[1734363563036,0.11846955,106040.0,106030.0,0.15]
[1734363563461,0.11846955,106040.0,106030.0,0.170457]